fUSD/lending_fUSD_20240109
["ID","MTS","AMOUNT","RATE_DAILY","PERIOD"]
[310945549,1704826260270,-2610.04840539,0.00041095,30]
[310945550,1704826261350,-1779.19159461,0.00041095,30]
[310945551,1704826261360,-1558.63,0.00041095,30]
[310945552,1704826261370,-1558.63,0.00041095,30]
[310945553,1704826261380,-2330.49,0.00041095,30]
[310945554,1704826261389,-315.49666349,0.00041095,30]
[310945555,1704826261407,-1243.13333651,0.00041095,30]
[310945556,1704826261416,-38.50571872,0.00041095,30]
[310945557,1704826261428,-461.49428128,0.00041095,30]
[310945558,1704826261437,-417.05754463,0.00041095,30]
[310945559,1704826261449,-475.33246739,0.00041095,30]
[310945560,1704826261461,-666.23998798,0.00041095,30]
[310945561,1704826261470,-178.37317736,0.00041095,30]
[310945562,1704826261490,-549.8873675,0.00041095,30]
[310945563,1704826261516,-830.36945514,0.00041095,30]
[310945564,1704826261525,-509.3,0.00041095,30]
[310945565,1704826261535,-269.99101421,0.00041095,30]
[310945566,1704826261547,-1288.63898579,0.00041095,30]
[310945567,1704826261556,-415.50735595,0.00041095,30]
[310945568,1704826261568,-394.96999999,0.00041095,30]
[310945569,1704826261579,-622.56932309,0.00041095,30]
[310945570,1704826261590,-125.58332097,0.00041095,30]
[310945571,1704826261600,-1558.63,0.00041095,30]
[310945572,1704826261609,-500.0,0.00041095,30]
[310945573,1704826261619,-534.02,0.00041095,30]
[310945574,1704826261628,-1558.63,0.00041095,30]
[310945575,1704826261639,-710.0,0.00041095,30]
[310945576,1704826261649,-1558.63,0.00041095,30]
[310945577,1704826261658,-841.33,0.00041095,30]
[310945578,1704826261667,-120.33856943,0.00041095,30]
[310945579,1704826261751,-1438.29143057,0.00041095,30]
[310945580,1704826261761,-824.63769012,0.00041095,30]
[310945581,1704826262753,-249.73147916,0.00022996,2]
[310945582,1704826262762,-30.97552084,0.00022996,2]
[310945583,1704826262775,-278.47859206,0.00022996,2]
[310945584,1704826262882,-336.85633833,0.00022996,2]
[310945585,1704826262892,-499.97609242,0.00031221,4]
[310945586,1704826262901,-2613.66213629,0.00033999,4]
[310945587,1704826262912,-343.0,0.000343,2]
[310945588,1704826262921,-204.0,0.00035795,5]
[310945589,1704826262931,-157.74664031,0.000364,2]
[310945590,1704826262940,-95955.09005316,0.000405,2]
[310945591,1704826262952,-82732.42217965,0.000405,2]
[310945592,1704826262963,-838.87783942,0.000405,2]
[310945593,1704826262974,-1407.58137535,0.000405,2]
[310945594,1704826262999,-532.98005436,0.000405,2]
[310945595,1704826263010,-748.91472403,0.000405,2]
[310945596,1704826263022,-270.9582862,0.000405,2]
[310945597,1704826263033,-1204.0431,0.000405,2]
[310945598,1704826263045,-1023.7,0.000405,2]
[310945599,1704826263057,-281.13637335,0.000405,2]
[310945600,1704826263070,-431.60659171,0.000405,2]
[310945601,1704826263090,-568413.65999902,0.000405,2]
[310945602,1704826263111,-215.16858361,0.00022973,2]
[310945603,1704826263121,-9233.83817665,0.000405,2]
[310945604,1704826263140,-2197.09765913,0.000405,2]
[310945608,1704826333825,281.15,0.00022077,2]
[310945609,1704826366349,169.13,0.00022483,2]
[310945610,1704826377211,116292.92987443,0.00022077,2]
[310945611,1704826377529,500.0,0.00022077,2]
[310945612,1704826379187,350.0,0.00022,3]
[310945613,1704826380898,155.0,0.00022077,2]
[310945614,1704826381053,540.33644919,0.00022077,2]
[310945615,1704826391227,96910.77489536,0.00022077,2]
[310945616,1704826393415,23900.0,0.00022412,2]
[310945617,1704826396889,450.28037433,0.00022077,2]
[310945618,1704826397535,500.0,0.00022077,2]
[310945619,1704826398507,225.49454598,0.00022077,2]
[310945620,1704826407223,50490.51372048,0.00022077,2]
[310945621,1704826412902,450.28037433,0.00022077,2]
[310945622,1704826419573,500.0,0.00022077,2]
[310945623,1704826423220,50490.51372048,0.00022077,2]
[310945624,1704826426685,175.96,0.00022,2]
[310945625,1704826428887,234.59607502,0.00022077,2]
[310945626,1704826441238,50490.51372048,0.00022077,2]
[310945627,1704826441613,500.0,0.00022077,2]
[310945628,1704826450993,234.59607502,0.00022077,2]
[310945629,1704826455225,1378.94341021,0.00022077,2]
[310945630,1704826455251,49111.57031027,0.00022077,2]
[310945631,1704826457537,150.0,0.00022077,2]
[310945632,1704826457560,150.0,0.00022077,2]
[310945633,1704826457582,200.0,0.00022077,2]
[310945634,1704826473230,150.0,0.00022077,2]
[310945635,1704826473251,150.0,0.00022077,2]
[310945636,1704826473275,150.0,0.00022077,2]
[310945637,1704826473295,150.0,0.00022077,2]
[310945638,1704826473318,49890.51372048,0.00022077,2]
[310945639,1704826473452,200.0,0.00021907,2]
[310945640,1704826473545,500.0,0.00022077,2]
[310945641,1704826478502,466.09316872,0.00022076,2]
[310945642,1704826480078,363.46963652,0.00022076,2]
[310945643,1704826483698,155.38164155,0.00022077,2]
[310945644,1704826484897,234.59607502,0.00022077,2]
[310945645,1704826485340,2705.0,0.00021931,2]
[310945646,1704826485884,481.69370681,0.00022077,2]
[310945647,1704826489223,50490.51372048,0.00022077,2]
[310945648,1704826491680,158.86246987,0.00022077,2]
[310945649,1704826497956,500.0,0.00022077,2]
[310945650,1704826503070,169.52,0.00021902,2]
[310945651,1704826507230,50490.51372048,0.00022077,2]
[310945652,1704826510478,558.6,0.00021909,2]
[310945653,1704826514906,234.59607502,0.00022077,2]
[310945655,1704826521857,500.0,0.00022077,2]
[310945656,1704826525229,50490.51372048,0.00022077,2]
[310945657,1704826530903,234.59607502,0.00022077,2]
[310945659,1704826541544,500.0,0.00022077,2]
[310945660,1704826545233,50490.51372048,0.00022077,2]
[310945661,1704826549352,261.07951741,0.00022444,2]
[310945662,1704826552952,234.59607502,0.00022077,2]
[310945663,1704826554241,358.58,0.00021875,2]
[310945665,1704826557646,500.0,0.00022077,2]
[310945667,1704826561243,50490.51372048,0.00022077,2]
[310945668,1704826561605,292.8,0.00021875,2]
[310945669,1704826568924,234.59607502,0.00022077,2]
[310945671,1704826577554,500.0,0.00022077,2]
[310945672,1704826577767,2000.0,0.00021875,2]
[310945673,1704826583159,10537.4882047,0.00021874,2]
[310945674,1704826585259,50490.51372048,0.00022077,2]
[310945675,1704826587009,234.59607502,0.00022077,2]
[310945677,1704826601247,26068.99844686,0.00021875,2]
[310945678,1704826601544,472.10813608,0.00021875,2]
[310945679,1704826606983,374.63327148,0.00021875,2]
[310945680,1704826607667,352.24673966,0.00022448,2]
[310945682,1704826615426,179.48,0.00022013,2]
[310945683,1704826616998,179.48,0.00022073,2]
[310945684,1704826617151,179.48,0.00022133,2]
[310945685,1704826617339,179.48,0.00022194,2]
[310945686,1704826617501,179.48,0.00022254,2]
[310945687,1704826617663,179.48,0.00022314,2]
[310945688,1704826617703,200.0,0.00021875,2]
[310945689,1704826617945,179.48,0.00022375,2]
[310945690,1704826617990,179.48,0.00022435,2]
[310945691,1704826618044,179.48,0.00022496,2]
[310945693,1704826645527,1764.75,0.00021736,2]
[310945695,1704826655459,178.079,0.00022444,2]
[310945696,1704826665299,165.72,0.00021729,2]
[310945697,1704826665485,174.05301162,0.00022435,2]
[310945698,1704826668675,261.15,0.00021729,2]
[310945700,1704826677455,200.0,0.00021736,2]
[310945702,1704826688927,1545.8276,0.00022444,2]
[310945703,1704826693233,889.93602892,0.00022443,2]
[310945704,1704826719104,347.213,0.00022433,2]
[310945705,1704826738012,162.71291202,0.000229,6]
[310945706,1704826739106,267.09,0.00019821,2]
[310945707,1704826739346,267.09,0.00022084,2]
[310945708,1704826775426,157.85,0.0002172,2]
[310945709,1704826784373,250.0,0.0002171,2]
[310945710,1704826844211,363.46963652,0.00022501,2]
[310945711,1704826846368,929.81367075,0.00022501,2]
[310945712,1704826847416,500.54284243,0.00022501,2]
[310945719,1704826854677,572.03908676,0.00022501,2]
[310945720,1704826854726,2400.87776758,0.00022501,2]
[310945721,1704826857923,155.0,0.00022501,2]
[310945722,1704826861598,388.41097394,0.00022501,2]
[310945723,1704826865898,400.0,0.00022501,2]
[310945724,1704826866595,155.0,0.00022501,2]
[310945726,1704826869021,160.35626993,0.00022501,2]
[310945727,1704826869928,2404.16535474,0.00022501,2]
[310945728,1704826871216,2178.05178024,0.00022501,2]
[310945729,1704826876242,7768.84462224,0.00022501,2]
[310945730,1704826885384,10816.82278462,0.00022501,2]
[310945731,1704826886410,265.0091565,0.00022501,2]
[310945732,1704826888356,215.16858361,0.00022501,2]
[310945734,1704826892855,155.0,0.00022501,2]
[310945735,1704826904339,343.79799483,0.0002248,2]
[310945737,1704826912032,646.47,0.00021962,2]
[310945738,1704826921637,55987.05685693,0.00022501,2]
[310945739,1704826925169,363.46963652,0.00022501,2]
[310945743,1704826930344,476.69923897,0.00022501,2]
[310945744,1704826931056,774.84472563,0.00022501,2]
[310945748,1704826943238,2000.73147299,0.00022501,2]
[310945755,1704826952954,301.53,0.00021808,2]
[310945757,1704826957100,2500.0,0.00022435,2]
[310945762,1704826986163,46655.88071411,0.00022501,2]
[310945763,1704826989992,190.6,0.00021838,2]
[310945765,1704826999449,219.89165673,0.00022501,2]
[310945766,1704827001534,2615.50147157,0.00022501,2]
[310945767,1704827002179,363.46963652,0.00022501,2]
[310945768,1704827003450,403.69410205,0.00022501,2]
[310945769,1704827005731,248.3603035,0.00022501,2]
[310945772,1704827029743,1042.38109743,0.00022501,2]
[310945775,1704827038553,151.86,0.00022062,2]
[310945776,1704827038810,151.86,0.00022157,2]
[310945777,1704827039064,151.86,0.00022253,2]
[310945778,1704827039409,151.86,0.00022349,2]
[310945779,1704827039509,151.86,0.00022445,2]
[310945782,1704827047011,350.9,0.00022,2]
[310945783,1704827054954,155.0,0.00022501,2]
[310945786,1704827058275,9014.01898719,0.00022501,2]
[310945787,1704827059318,24307.71385205,0.00022501,2]
[310945790,1704827060225,1134.7649775,0.00022501,2]
[310945792,1704827068960,155.0,0.00022501,2]
[310945793,1704827071694,363.46963652,0.00022501,2]
[310945794,1704827072114,248.3603035,0.00022501,2]
[310945796,1704827073938,403.69410205,0.00022501,2]
[310945807,1704827104290,1042.38109743,0.00022501,2]
[310945814,1704827130946,265.0091565,0.00022501,2]
[310945815,1704827132732,1134.7649775,0.00022501,2]
[310945816,1704827132788,4696.30389232,0.00022501,2]
[310945817,1704827132938,400.0,0.00022501,2]
[310945820,1704827135338,741.61335743,0.00022501,2]
[310945822,1704827136951,2003.47112895,0.00022501,2]
[310945823,1704827139192,24307.71385205,0.00022501,2]
[310945825,1704827140623,248.3603035,0.00022501,2]
[310945826,1704827140697,363.46963652,0.00022501,2]
[310945827,1704827145225,202.36211742,0.00022501,2]
[310945829,1704827149498,155.0,0.00022501,2]
[310945830,1704827150394,403.69410205,0.00022501,2]
[310945836,1704827171883,240.38,0.00019973,2]
[310945837,1704827172098,240.38,0.00022237,2]
[310945841,1704827177977,1000.0,0.00022501,2]
[310945842,1704827182766,1042.38109743,0.00022501,2]
[310945844,1704827189301,-429.04606555,0.00022502,2]
[310945845,1704827189323,-218.64004931,0.00022502,2]
[310945846,1704827189345,-160.4657233,0.00022502,2]
[310945847,1704827189366,-1148.27978465,0.00022502,2]
[310945848,1704827189387,-98890.14709174,0.00022502,2]
[310945849,1704827189408,-348.93,0.00022533,2]
[310945850,1704827189432,-910.17,0.00022533,2]
[310945851,1704827189453,-1292.96,0.00022533,2]
[310945852,1704827189473,-456.2,0.00022533,2]
[310945853,1704827189495,-1955.06,0.00022533,2]
[310945854,1704827189518,-426.6045854,0.00022535,2]
[310945855,1704827189540,-1653.02,0.00022535,2]
[310945856,1704827189563,-8928.01,0.00022535,2]
[310945857,1704827189585,-151.86,0.00022541,2]
[310945858,1704827189606,-547.74754147,0.00022542,2]
[310945859,1704827189627,-306.93741208,0.00022542,2]
[310945860,1704827189648,-155.0,0.00022542,2]
[310945861,1704827189669,-1134.7649775,0.00022542,2]
[310945862,1704827189691,-4696.30389232,0.00022542,2]
[310945863,1704827189713,-265.0091565,0.00022542,2]
[310945864,1704827189734,-400.0,0.00022542,2]
[310945865,1704827189758,-741.61335743,0.00022542,2]
[310945866,1704827189780,-202.36211742,0.00022542,2]
[310945867,1704827189802,-363.46963652,0.00022542,2]
[310945868,1704827189823,-1043.80845818,0.00022542,2]
[310945869,1704827189847,-248.3603035,0.00022542,2]
[310945870,1704827189870,-155.0,0.00022542,2]
[310945871,1704827189891,-403.69410205,0.00022542,2]
[310945872,1704827189913,-499.92428758,0.00022543,2]
[310945873,1704827189936,-24307.71385205,0.00022543,2]
[310945874,1704827189961,-47558.89760545,0.00022544,2]
[310945876,1704827191455,586.0,0.00022501,2]
[310945879,1704827199879,549.1215,0.00022444,2]
[310945895,1704827249987,153.6474407,0.00022444,2]
[310945897,1704827254582,153.64744067,0.0002249,2]
[310945902,1704827283768,157.85,0.00021812,2]
[310945935,1704827337683,-400.0,0.0002253,2]
[310945936,1704827337705,-1042.38109743,0.0002253,2]
[310945937,1704827337727,-202.36211742,0.00022531,2]
[310945938,1704827337749,-386.38055922,0.00022531,2]
[310945939,1704827337770,-1043.80845818,0.00022531,2]
[310945940,1704827337791,-248.3603035,0.00022531,2]
[310945941,1704827337813,-363.46963652,0.00022531,2]
[310945942,1704827337834,-4696.30389232,0.00022531,2]
[310945943,1704827337856,-1134.7649775,0.00022532,2]
[310945944,1704827337877,-155.0,0.00022532,2]
[310945945,1704827337899,-403.69410205,0.00022532,2]
[310945946,1704827337924,-153.64744067,0.00022535,2]
[310945947,1704827337946,-82408.45590979,0.00022538,2]
[310945948,1704827337968,-7361.3715054,0.00022539,2]
[310945959,1704827412166,-403.69410205,0.00022534,2]
[310945960,1704827412188,-1134.7649775,0.00022535,2]
[310945961,1704827412209,-363.46963652,0.00022535,2]
[310945962,1704827412232,-202.36211742,0.00022536,2]
[310945963,1704827412253,-4696.30389232,0.00022536,2]
[310945964,1704827412274,-82408.45590979,0.00022536,2]
[310945965,1704827412295,-180.46644583,0.00022537,2]
[310945966,1704827412316,-1043.80845818,0.00022537,2]
[310945967,1704827412337,-386.38055922,0.00022537,2]
[310945968,1704827412358,-400.0,0.00022537,2]
[310945969,1704827412380,-24307.71385205,0.00022537,2]
[310945970,1704827412401,-844.98023039,0.00022539,2]
[310945971,1704827412423,-1042.38109743,0.00022543,2]
[310945972,1704827412443,-248.3603035,0.00022543,2]
[310945973,1704827412467,-9336.8584178,0.00022544,2]
[310945979,1704827426645,418.96973772,0.00022059,2]
[310946016,1704827432210,-386.38055922,0.00022534,2]
[310946018,1704827432220,-341.31604125,0.00022543,2]
[310946022,1704827432267,-793.44893625,0.00022543,2]
[310946023,1704827432276,-1042.38109743,0.00022543,2]
[310946024,1704827432286,-2989.54730097,0.00022544,2]
[310946025,1704827432297,-1926.7925768,0.00022544,2]
[310946026,1704827432311,-981.14561195,0.00022544,2]
[310946027,1704827432323,-309.36977282,0.00022544,2]
[310946028,1704827432334,-74496.93068297,0.00022544,2]
[310946029,1704827432372,-25728.66636824,0.00022544,2]
[310946030,1704827432382,-427.11,0.00022544,2]
[310946031,1704827432391,-150.99,0.00022556,2]
[310946032,1704827432400,-153.64744067,0.00022581,2]
[310946033,1704827432409,-153.64744067,0.00022626,2]
[310946034,1704827432418,-541.5,0.00022626,2]
[310946035,1704827432427,-499.99,0.00022637,2]
[310946036,1704827432437,-151.86,0.00022637,2]
[310946037,1704827432446,-162.35363466,0.00022658,2]
[310946038,1704827432455,-153.64744067,0.00022672,2]
[310946039,1704827432464,-153.64744067,0.00022718,2]
[310946040,1704827432473,-151.86,0.00022732,2]
[310946041,1704827432482,-162.35363463,0.00022739,2]
[310946042,1704827432492,-155.0,0.00022758,2]
[310946043,1704827432502,-5007.65404292,0.00022761,2]
[310946044,1704827432513,-153.64744067,0.00022763,2]
[310946045,1704827432524,-492.66491416,0.00022767,2]
[310946046,1704827432538,-153.64744067,0.00022809,2]
[310946047,1704827432549,-162.35363463,0.00022819,2]
[310946048,1704827432559,-151.86,0.00022828,2]
[310946049,1704827432569,-153.64744067,0.00022854,2]
[310946050,1704827432579,-157.85,0.00022865,2]
[310946051,1704827432589,-5226.90967857,0.0002289,2]
[310946052,1704827432598,-671.45722281,0.00022896,2]
[310946054,1704827432607,-162.35363463,0.000229,2]
[310946057,1704827432617,-5094.43603459,0.000229,2]
[310946060,1704827432629,-153.64744067,0.000229,2]
[310946063,1704827432638,-372.10871546,0.000229,2]
[310946066,1704827432647,-151.86,0.00022924,2]
[310946069,1704827432656,-173.80086289,0.00022978,2]
[310946072,1704827432667,-42934.805529,0.00022978,2]
[310946074,1704827432676,-248.3603035,0.00022978,2]
[310946077,1704827432685,-403.69410205,0.00022978,2]
[310946079,1704827432694,-1043.80845818,0.00022978,2]
[310946081,1704827432704,-4696.30389232,0.00022978,2]
[310946083,1704827432713,-404.87006858,0.00022979,2]
[310946085,1704827432722,-24307.71385205,0.00022979,2]
[310946087,1704827432731,-400.0,0.00022979,2]
[310946089,1704827432741,-208910.71458687,0.0002298,2]
[310946091,1704827432750,-4477.84140557,0.00022996,2]
[310946093,1704827432759,-527.0422389,0.00022996,2]
[310946094,1704827432769,-1654.6697476,0.00022996,2]
[310946096,1704827432778,-541.98350192,0.00022996,2]
[310946098,1704827432789,-155.0,0.00022997,2]
[310946099,1704827432799,-5264.33667276,0.00022997,2]
[310946101,1704827432808,-203.37489632,0.00022997,2]
[310946103,1704827432818,-375.86279312,0.00022997,2]
[310946104,1704827432827,-695.86495479,0.00022997,2]
[310946105,1704827432836,-155.0,0.00022997,2]
[310946106,1704827432846,-282.37710126,0.00022998,2]
[310946107,1704827432855,-232.72962994,0.00022998,2]
[310946108,1704827432872,-298.97746598,0.00022998,2]
[310946109,1704827432883,-155.0,0.00022998,2]
[310946110,1704827432892,-253.92586632,0.00022999,2]
[310946111,1704827432901,-150.0,0.00022999,2]
[310946112,1704827432910,-150.0,0.00022999,2]
[310946113,1704827432919,-150.0,0.00022999,2]
[310946114,1704827432929,-150.0,0.00022999,2]
[310946115,1704827432938,-150.0,0.00022999,2]
[310946116,1704827432947,-150.0,0.00022999,2]
[310946117,1704827432956,-188.40683151,0.00022999,2]
[310946118,1704827432965,-150.0,0.00022999,2]
[310946119,1704827432975,-150.0,0.00022999,2]
[310946120,1704827432984,-200.00000007,0.00022999,2]
[310946121,1704827432993,-932.39338065,0.00023,2]
[310946122,1704827433002,-11248.36509918,0.00023,2]
[310946123,1704827433014,-292.97642527,0.00023,2]
[310946124,1704827433026,-628.5781616,0.00023,2]
[310946125,1704827433039,-1133.12918751,0.00023,2]
[310946126,1704827433050,-83988.52117555,0.00023,2]
[310946127,1704827433065,-303.88,0.00023,2]
[310946128,1704827433095,-1881.09910861,0.00023,2]
[310946129,1704827433109,-550.39902138,0.00023,2]
[310946130,1704827433121,-653.1060335,0.00023,2]
[310946131,1704827433137,-2207.00678967,0.00023,2]
[310946132,1704827433153,-1210.24940779,0.00023,2]
[310946133,1704827433164,-383.23600317,0.00023,2]
[310946143,1704827438173,-172.38159461,0.000229,2]
[310946145,1704827438182,-202.36211742,0.00022978,2]
[310946147,1704827438193,-7684661.56974592,0.00023,2]
[310946149,1704827438202,-4124914.88500927,0.00023,2]
[310946151,1704827438212,-150.0,0.00023,2]
[310946153,1704827438222,-151.86,0.0002302,2]
[310946154,1704827438231,-151.86,0.00023116,2]
[310946155,1704827438240,-8886.44200221,0.0002313,2]
[310946156,1704827438250,-151.86,0.00023211,2]
[310946157,1704827438260,-420.84786214,0.00023288,4]
[310946158,1704827438270,-441.0557608,0.00023288,4]
[310946159,1704827438279,-157.85,0.00023919,2]
[310946160,1704827438288,-430.68871395,0.00024,2]
[310946161,1704827438297,-438.76069,0.00024226,2]
[310946162,1704827438306,-324.42864942,0.0002442,2]
[310946163,1704827438315,-240.38,0.00024501,2]
[310946164,1704827438324,-190.6,0.00024568,2]
[310946165,1704827438333,-558.6,0.00024648,2]
[310946166,1704827438342,-250.0,0.00024658,2]
[310946167,1704827438351,-157.85,0.00024973,2]
[310946168,1704827438360,-167.05182833,0.00025,2]
[310946169,1704827438369,-1581.25327792,0.00025,2]
[310946170,1704827438384,-302.30647103,0.00025,2]
[310946171,1704827438393,-1016.69878254,0.00025,2]
[310946172,1704827438402,-430.0,0.00025,2]
[310946173,1704827438412,-2801.20631491,0.00025,2]
[310946174,1704827438421,-671.45722281,0.00025026,2]
[310946175,1704827438431,-9363.63397439,0.0002509,2]
[310946176,1704827438440,-3397.86796347,0.00026,2]
[310946189,1704827438671,-200.70165869,0.00026,2]
[310946197,1704827438783,-157.85,0.00026027,2]
[310946199,1704827438793,-150.0,0.00026079,2]
[310946201,1704827438803,-16424.66427467,0.000264,2]
[310946203,1704827438814,-8838.72,0.00026575,2]
[310946205,1704827438823,-10305.56008283,0.000267,2]
[310946207,1704827438833,-240.38,0.00026765,2]
[310946209,1704827438842,-157.85,0.0002708,2]
[310946211,1704827438852,-671.45722281,0.00027157,3]
[310946213,1704827438862,-190.6,0.00027298,2]
[310946215,1704827438872,-558.6,0.00027386,2]
[310946217,1704827438888,-500.0,0.00027397,2]
[310946219,1704827438899,-250.0,0.00027397,2]
[310946221,1704827438908,-162.79982714,0.000274,2]
[310946223,1704827438919,-35043.0,0.000274,2]
[310946225,1704827438930,-3366.0,0.000275,2]
[310946228,1704827438941,-7969.17823963,0.000275,2]
[310946229,1704827438951,-12274.41017462,0.00028,2]
[310946232,1704827438962,-687.02354933,0.00028,2]
[310946234,1704827438973,-157.85,0.00028134,2]
[310946236,1704827438984,-3185.21463735,0.00028798,2]
[310946238,1704827438994,-1040.00347398,0.00029,2]
[310946240,1704827439005,-240.38,0.00029029,2]
[310946242,1704827439015,-1000.0,0.00029071,2]
[310946244,1704827439026,-157.85,0.00029188,2]
[310946245,1704827439040,-671.45722281,0.00029287,4]
[310946247,1704827439050,-205.0,0.00029547,2]
[310946249,1704827439060,-6335.4466272,0.00029698,2]
[310946251,1704827439070,-248.70872863,0.00029698,2]
[310946253,1704827439080,-37441.04653127,0.000298,2]
[310946335,1704827439903,-670091.66503621,0.000298,2]
[310946337,1704827439912,-4786.80232736,0.000299,2]
[310946339,1704827439921,-489.87105261,0.00029983,2]
[310946341,1704827439930,-382.72168125,0.00029998,2]
[310946343,1704827439940,-313.44611819,0.00029998,2]
[310946345,1704827439950,-694.44370806,0.00029998,2]
[310946347,1704827439959,-173.55828971,0.00029998,2]
[310946349,1704827439968,-5678.57488426,0.00029998,2]
[310946351,1704827439978,-155.16423603,0.00029999,2]
[310946353,1704827439987,-1245.75987952,0.00029999,2]
[310946355,1704827439997,-155.24528146,0.00029999,2]
[310946357,1704827440007,-1000.0,0.0003,2]
[310946359,1704827440017,-72679.43685376,0.0003,4]
[310946361,1704827440027,-18985.51868976,0.0003,4]
[310946363,1704827440036,-967.63643308,0.0003,4]
[310946365,1704827440045,-209.24859959,0.0003,4]
[310946367,1704827440054,-950.72237203,0.0003,4]
[310946369,1704827440063,-690.39236906,0.0003,2]
[310946372,1704827440073,-16491.64534544,0.0003,2]
[310946374,1704827440082,-155.0,0.0003,2]
[310946376,1704827440091,-1474.20348708,0.0003,2]
[310946378,1704827440103,-1259.38320053,0.0003,2]
[310946380,1704827440113,-8796.83988555,0.0003,4]
[310946382,1704827440122,-829.81002967,0.0003,4]
[310946384,1704827440133,-190.6,0.00030027,2]
[310946386,1704827440142,-285.68297929,0.000301,4]
[310946388,1704827440153,-1158.56238978,0.000301,2]
[310946390,1704827440163,-692.65508001,0.000301,2]
[310946392,1704827440172,-558.6,0.00030125,2]
[310946394,1704827440181,-10000.0,0.00030137,2]
[310946396,1704827440191,-157.85,0.00030242,2]
[310946398,1704827440201,-2266.0,0.00030621,2]
[310946401,1704827440211,-409.425,0.00030621,2]
[310946403,1704827440220,-1026.0,0.00030621,2]
[310946405,1704827440230,-542.07,0.00030666,2]
[310946407,1704827440239,-317.0,0.00030666,2]
[310946409,1704827440249,-213.0,0.00031032,5]
[310946411,1704827440258,-1000.0,0.0003125,2]
[310946413,1704827440267,-208.0,0.00031263,2]
[310946415,1704827440276,-240.38,0.00031293,2]
[310946417,1704827440285,-157.85,0.00031295,2]
[310946419,1704827440294,-671.45722281,0.00031418,5]
[310946421,1704827440304,-153.86,0.00031507,2]
[310946423,1704827440315,-155.89,0.00031524,2]
[310946425,1704827440324,-165.05,0.00031644,2]
[310946427,1704827440333,-155.89,0.00031721,2]
[310946429,1704827440343,-172.152924,0.000318,2]
[310946431,1704827440352,-264.84299778,0.000319,2]
[310946433,1704827440362,-264.84299774,0.000319,2]
[310946435,1704827440371,-155.89,0.00031918,2]
[310946437,1704827440382,-261.10253064,0.00032,2]
[310946439,1704827440391,-443065.8849482,0.00032,2]
[310946441,1704827440401,-155.89,0.00032116,2]
[310946443,1704827440411,-155.89,0.00032313,2]
[310946445,1704827440420,-157.85,0.00032349,2]
[310946447,1704827440429,-1000.0,0.000325,2]
[310946449,1704827440439,-155.89,0.0003251,2]
[310946451,1704827440448,-155.89,0.00032707,2]
[310946453,1704827440458,-190.6,0.00032757,2]
[310946455,1704827440467,-558.6,0.00032863,2]
[310946457,1704827440476,-150.92,0.00032877,15]
[310946458,1704827440485,-155.89,0.00032904,2]
[310946462,1704827440495,-205.0,0.00032931,8]
[310946465,1704827440505,-155.89,0.00033101,2]
[310946468,1704827440517,-2043.9540007,0.00033111,2]
[310946471,1704827440527,-155.89,0.00033298,2]
[310946474,1704827440535,-157.85,0.00033403,2]
[310946477,1704827440545,-155.89,0.00033495,2]
[310946481,1704827440554,-391.59793213,0.000335,2]
[310946485,1704827440563,-412.96,0.000335,2]
[310946489,1704827440573,-412.96,0.000335,2]
[310946492,1704827440583,-412.96,0.000335,2]
[310946495,1704827440592,-412.96,0.000335,2]
[310946499,1704827440602,-412.96,0.000335,2]
[310946503,1704827440612,-412.96,0.000335,2]
[310946507,1704827440621,-412.96,0.000335,2]
[310946511,1704827440632,-412.96,0.000335,2]